[Event "*** Titled Tuesday Blitz"]
[Site "Chess.com"]
[Date "2020.02.04"]
[Round "6"]
[White "arminmusovic"]
[Black "bluejay1897"]
[Result "1/2-1/2"]
[WhiteElo "2543"]
[BlackElo "2394"]
[TimeControl "180+2"]
[EndTime "10:23:15 PST"]
[Termination "Game drawn by agreement"]

1. e4 {[%clk 0:03:01.9]} 1... c5 {[%clk 0:03:01]} 2. c3 {[%clk 0:03:02.9]} 2...
d5 {[%clk 0:03:01.7]} 3. exd5 {[%clk 0:03:03.9]} 3... Qxd5 {[%clk 0:03:03.6]} 4.
h3 {[%clk 0:03:05.6]} 4... Nf6 {[%clk 0:03:04.3]} 5. Na3 {[%clk 0:03:06]} 5...
e6 {[%clk 0:03:03.5]} 6. Nf3 {[%clk 0:03:05.8]} 6... Nc6 {[%clk 0:03:04.1]} 7.
d4 {[%clk 0:02:59.2]} 7... cxd4 {[%clk 0:03:05]} 8. Nb5 {[%clk 0:03:00.7]} 8...
Qd8 {[%clk 0:03:06]} 9. cxd4 {[%clk 0:03:00.6]} 9... a6 {[%clk 0:03:05.9]} 10.
Nc3 {[%clk 0:03:01.9]} 10... Bb4 {[%clk 0:03:05.3]} 11. Bd3 {[%clk 0:03:02.1]}
11... O-O {[%clk 0:03:06.1]} 12. O-O {[%clk 0:03:03.3]} 12... Ne7 {[%clk
0:03:04.4]} 13. Bg5 {[%clk 0:03:01.2]} 13... Ng6 {[%clk 0:02:59.7]} 14. Rc1
{[%clk 0:02:58.3]} 14... b5 {[%clk 0:02:57.7]} 15. Ne4 {[%clk 0:02:40.7]} 15...
Be7 {[%clk 0:02:57]} 16. Nc5 {[%clk 0:02:40.8]} 16... Nd7 {[%clk 0:02:52.8]} 17.
Bxe7 {[%clk 0:02:28.6]} 17... Qxe7 {[%clk 0:02:54.7]} 18. b4 {[%clk 0:02:29.9]}
18... Nf4 {[%clk 0:02:42.7]} 19. Qd2 {[%clk 0:02:16.4]} 19... Nd5 {[%clk
0:02:41.1]} 20. Rfe1 {[%clk 0:02:15.2]} 20... Qf6 {[%clk 0:02:35.6]} 21. Ng5
{[%clk 0:02:12.9]} 21... g6 {[%clk 0:02:19.9]} 22. Be4 {[%clk 0:02:11.9]} 22...
N7b6 {[%clk 0:02:14.4]} 23. Nf3 {[%clk 0:02:03.2]} 23... a5 {[%clk 0:01:55.6]}
24. a3 {[%clk 0:01:48.3]} 24... axb4 {[%clk 0:01:55.5]} 25. axb4 {[%clk
0:01:50.2]} 25... Nc4 {[%clk 0:01:56.2]} 26. Qh6 {[%clk 0:01:46.5]} 26... Ra2
{[%clk 0:01:52]} 27. Bxd5 {[%clk 0:01:26.2]} 27... exd5 {[%clk 0:01:52.4]} 28.
Ra1 {[%clk 0:01:23.1]} 28... Rb2 {[%clk 0:01:21.7]} 29. Rab1 {[%clk 0:01:10.4]}
29... Rxb1 {[%clk 0:01:22.2]} 30. Rxb1 {[%clk 0:01:12.3]} 30... Bf5 {[%clk
0:01:23.3]} 31. Ra1 {[%clk 0:01:11.5]} 31... Be4 {[%clk 0:01:24.5]} 32. Nxe4
{[%clk 0:01:06.9]} 32... dxe4 {[%clk 0:01:25.4]} 33. Ng5 {[%clk 0:01:08.5]}
33... Qg7 {[%clk 0:01:24.1]} 34. Qxg7+ {[%clk 0:01:09.8]} 34... Kxg7 {[%clk
0:01:25.3]} 35. Nxe4 {[%clk 0:01:11.7]} 35... Rd8 {[%clk 0:01:26.6]} 36. Rd1
{[%clk 0:01:08.6]} 36... Nb2 {[%clk 0:01:27.8]} 37. Rd2 {[%clk 0:01:04]} 37...
Nc4 {[%clk 0:01:28.9]} 38. Rd3 {[%clk 0:01:04.5]} 38... Nb2 {[%clk 0:01:29.2]}
39. Rb3 {[%clk 0:01:03.5]} 39... Rxd4 {[%clk 0:01:28.5]} 40. Rxb2 {[%clk
0:00:49.8]} 40... Rxe4 {[%clk 0:01:29.2]} 41. f3 {[%clk 0:00:51.1]} 41... Rd4
{[%clk 0:01:27.7]} 42. Kf2 {[%clk 0:00:51.1]} 42... Kf6 {[%clk 0:01:29]} 43. Ke3
{[%clk 0:00:52.2]} 43... Ke5 {[%clk 0:01:30.2]} 44. Rb3 {[%clk 0:00:35.7]} 44...
f5 {[%clk 0:01:28.7]} 45. g3 {[%clk 0:00:26.3]} 45... f4+ {[%clk 0:01:28.4]} 46.
gxf4+ {[%clk 0:00:27.5]} 46... Rxf4 {[%clk 0:01:30.3]} 47. Kf2 {[%clk
0:00:22.8]} 47... Rd4 {[%clk 0:01:29.7]} 48. Kg3 {[%clk 0:00:21.7]} 48... Kd5
{[%clk 0:01:23.7]} 49. f4 {[%clk 0:00:18.6]} 49... Ke4 {[%clk 0:01:22.2]} 50.
Kg4 {[%clk 0:00:17.7]} 50... h6 {[%clk 0:01:17.2]} 51. h4 {[%clk 0:00:19.2]}
51... Rd5 {[%clk 0:01:14.9]} 52. Rb1 {[%clk 0:00:17.4]} 52... h5+ {[%clk
0:01:15.9]} 53. Kg3 {[%clk 0:00:18.3]} 53... Rd3+ {[%clk 0:01:17.1]} 54. Kh2
{[%clk 0:00:18.3]} 54... Kxf4 {[%clk 0:01:18.2]} 55. Rg1 {[%clk 0:00:19.4]}
55... Rd4 {[%clk 0:01:05.1]} 56. Rxg6 {[%clk 0:00:19.2]} 56... Rxb4 {[%clk
0:01:06.2]} 57. Rg5 {[%clk 0:00:20.7]} 57... Rb2+ {[%clk 0:01:04.9]} 58. Kh3
{[%clk 0:00:22.1]} 58... b4 {[%clk 0:01:03.5]} 59. Rxh5 {[%clk 0:00:22.9]} 59...
b3 {[%clk 0:01:04.6]} 60. Rb5 {[%clk 0:00:24.1]} 60... Rb1 {[%clk 0:01:05.5]}
61. Kg2 {[%clk 0:00:23.1]} 61... b2 {[%clk 0:00:57.8]} 62. h5 {[%clk 0:00:21.4]}
62... Ra1 {[%clk 0:00:56]} 63. Rxb2 {[%clk 0:00:20.7]} 63... Kg5 {[%clk
0:00:57.2]} 64. Rb5+ {[%clk 0:00:21.5]} 64... Kh6 {[%clk 0:00:58]} 65. Kg3
{[%clk 0:00:22]} 65... Ra4 {[%clk 0:00:59.4]} 66. Rc5 {[%clk 0:00:22.1]} 66...
Rb4 {[%clk 0:01:00.3]} 1/2-1/2

[Event "*** Titled Tuesday Blitz"]
[Site "Chess.com"]
[Date "2020.02.04"]
[Round "6"]
[White "Indianlad"]
[Black "DanielNaroditsky"]
[Result "1/2-1/2"]
[WhiteElo "2914"]
[BlackElo "3127"]
[TimeControl "180+2"]
[EndTime "10:23:35 PST"]
[Termination "Game drawn by agreement"]

1. e4 {[%clk 0:03:01.9]} 1... e5 {[%clk 0:02:30.8]} 2. Nf3 {[%clk 0:03:02.9]}
2... Nc6 {[%clk 0:02:31.2]} 3. Bb5 {[%clk 0:03:03.9]} 3... a6 {[%clk 0:02:32.7]}
4. Ba4 {[%clk 0:03:04.4]} 4... Nf6 {[%clk 0:02:34.4]} 5. O-O {[%clk 0:03:05.5]}
5... Be7 {[%clk 0:02:36]} 6. Re1 {[%clk 0:03:03.4]} 6... b5 {[%clk 0:02:37.4]}
7. Bb3 {[%clk 0:03:05.1]} 7... d6 {[%clk 0:02:38.8]} 8. c3 {[%clk 0:03:06.1]}
8... O-O {[%clk 0:02:40.4]} 9. h3 {[%clk 0:03:07.1]} 9... Na5 {[%clk 0:02:42.2]}
10. Bc2 {[%clk 0:03:08]} 10... c5 {[%clk 0:02:43.9]} 11. d4 {[%clk 0:03:08.9]}
11... Nd7 {[%clk 0:02:45.6]} 12. a4 {[%clk 0:03:07.7]} 12... Bb7 {[%clk
0:02:35.1]} 13. Nbd2 {[%clk 0:03:08.7]} 13... exd4 {[%clk 0:02:32.1]} 14. cxd4
{[%clk 0:03:09.4]} 14... Nc6 {[%clk 0:02:34]} 15. d5 {[%clk 0:03:09.2]} 15...
Nce5 {[%clk 0:02:34.2]} 16. Nxe5 {[%clk 0:03:09.8]} 16... Nxe5 {[%clk
0:02:36.1]} 17. f4 {[%clk 0:03:09.2]} 17... Ng6 {[%clk 0:02:37.7]} 18. Nf3
{[%clk 0:03:10.5]} 18... Re8 {[%clk 0:02:35.2]} 19. g3 {[%clk 0:03:07.1]} 19...
Bf6 {[%clk 0:02:23.2]} 20. h4 {[%clk 0:03:08]} 20... Qd7 {[%clk 0:02:07.2]} 21.
h5 {[%clk 0:02:56.1]} 21... Nf8 {[%clk 0:02:07.5]} 22. Nh2 {[%clk 0:02:49.4]}
22... Qh3 {[%clk 0:02:00.6]} 23. Qg4 {[%clk 0:02:22.7]} 23... Bd4+ {[%clk
0:01:36.3]} 24. Be3 {[%clk 0:02:23.6]} 24... Qxg4 {[%clk 0:01:36.6]} 25. Nxg4
{[%clk 0:02:25.3]} 25... Bxb2 {[%clk 0:01:37]} 26. h6 {[%clk 0:02:17.6]} 26...
Bxa1 {[%clk 0:01:16.2]} 27. Rxa1 {[%clk 0:02:19.5]} 27... f6 {[%clk 0:01:14.1]}
28. hxg7 {[%clk 0:02:15.7]} 28... Kxg7 {[%clk 0:01:16]} 29. e5 {[%clk 0:02:17]}
29... Nd7 {[%clk 0:00:55.9]} 30. Bf5 {[%clk 0:02:17.9]} 30... Nb6 {[%clk
0:00:49.4]} 31. Nxf6 {[%clk 0:02:14.9]} 31... Nxd5 {[%clk 0:00:47.7]} 32. Nxe8+
{[%clk 0:02:01.4]} 32... Rxe8 {[%clk 0:00:49.6]} 33. Bf2 {[%clk 0:02:03]} 33...
b4 {[%clk 0:00:28.4]} 34. exd6 {[%clk 0:02:02.1]} 34... c4 {[%clk 0:00:29.7]}
35. d7 {[%clk 0:01:57.8]} 35... Rd8 {[%clk 0:00:31.2]} 36. Re1 {[%clk
0:01:49.7]} 36... Bc6 {[%clk 0:00:27.5]} 37. Bd4+ {[%clk 0:01:41.5]} 37... Kf7
{[%clk 0:00:28.7]} 38. Be6+ {[%clk 0:01:42.8]} 38... Kf8 {[%clk 0:00:29.9]} 39.
Bc5+ {[%clk 0:01:30.1]} 39... Kg7 {[%clk 0:00:30.6]} 40. Bd4+ {[%clk 0:00:57.9]}
40... Kf8 {[%clk 0:00:31.3]} 41. Re5 {[%clk 0:00:49.3]} 41... c3 {[%clk
0:00:16.5]} 42. Bxd5 {[%clk 0:00:47.5]} 42... c2 {[%clk 0:00:15.2]} 43. Bc5+
{[%clk 0:00:24.1]} 43... Kg7 {[%clk 0:00:15.7]} 44. Rg5+ {[%clk 0:00:20.1]}
44... Kh6 {[%clk 0:00:13.2]} 45. Be3 {[%clk 0:00:19.5]} 45... Rxd7 {[%clk
0:00:07.5]} 46. Bxc6 {[%clk 0:00:20.9]} 46... Rd3 {[%clk 0:00:06.5]} 47. Rc5
{[%clk 0:00:21]} 47... b3 {[%clk 0:00:05.1]} 48. Kf2 {[%clk 0:00:08.1]} 48...
Rxe3 {[%clk 0:00:06.5]} 49. Kxe3 {[%clk 0:00:09.2]} 49... b2 {[%clk 0:00:08.1]}
50. Rxc2 {[%clk 0:00:09.3]} 50... b1=Q {[%clk 0:00:09.7]} 51. Be4 {[%clk
0:00:11.2]} 51... Qb3+ {[%clk 0:00:07.7]} 52. Kf2 {[%clk 0:00:11.9]} 52... Qxa4
{[%clk 0:00:08.1]} 53. Rc6+ {[%clk 0:00:12]} 53... Kg7 {[%clk 0:00:09.7]} 54.
Rc7+ {[%clk 0:00:13.4]} 54... Kf6 {[%clk 0:00:09.8]} 55. Bxh7 {[%clk 0:00:13.5]}
55... Qa2+ {[%clk 0:00:10.3]} 56. Kf3 {[%clk 0:00:14.6]} 56... Qb3+ {[%clk
0:00:09.4]} 57. Kg4 {[%clk 0:00:12.8]} 57... Qd1+ {[%clk 0:00:10.7]} 58. Kh4
{[%clk 0:00:11.7]} 58... Qh1+ {[%clk 0:00:07]} 59. Kg4 {[%clk 0:00:13.3]} 59...
a5 {[%clk 0:00:07.8]} 60. Ra7 {[%clk 0:00:09.9]} 60... a4 {[%clk 0:00:07.3]} 61.
Bc2 {[%clk 0:00:09.2]} 61... Qg1 {[%clk 0:00:03.3]} 62. Ra6+ {[%clk 0:00:10.2]}
62... Ke7 {[%clk 0:00:04.5]} 63. Bxa4 {[%clk 0:00:11.9]} 63... Qd4 {[%clk
0:00:04.5]} 1/2-1/2

[Event "*** Titled Tuesday Blitz"]
[Site "Chess.com"]
[Date "2020.02.04"]
[Round "6"]
[White "hongnhung1234"]
[Black "SergioGarciaFuentes"]
[Result "0-1"]
[WhiteElo "2267"]
[BlackElo "2174"]
[TimeControl "180+2"]
[EndTime "10:23:48 PST"]
[Termination "SergioGarciaFuentes won by checkmate"]

1. d4 {[%clk 0:02:59]} 1... d5 {[%clk 0:02:58.3]} 2. c4 {[%clk 0:03:00.9]} 2...
c6 {[%clk 0:02:56.6]} 3. Nf3 {[%clk 0:02:59.5]} 3... Nf6 {[%clk 0:02:56.8]} 4.
cxd5 {[%clk 0:03:00.4]} 4... cxd5 {[%clk 0:02:57.2]} 5. Nc3 {[%clk 0:03:02.3]}
5... a6 {[%clk 0:02:57.7]} 6. Bf4 {[%clk 0:03:03.4]} 6... Nc6 {[%clk 0:02:58.6]}
7. e3 {[%clk 0:03:04.4]} 7... Bg4 {[%clk 0:02:59.3]} 8. Be2 {[%clk 0:03:04.8]}
8... e6 {[%clk 0:03:00.3]} 9. O-O {[%clk 0:03:04.2]} 9... Bd6 {[%clk 0:02:57.4]}
10. Bxd6 {[%clk 0:03:03.2]} 10... Qxd6 {[%clk 0:02:57.8]} 11. h3 {[%clk
0:03:04.8]} 11... Bxf3 {[%clk 0:02:57.9]} 12. Bxf3 {[%clk 0:03:05.3]} 12... O-O
{[%clk 0:02:58.7]} 13. a3 {[%clk 0:03:03.6]} 13... Rac8 {[%clk 0:02:58.4]} 14.
Rc1 {[%clk 0:03:04.2]} 14... b5 {[%clk 0:02:44]} 15. Qd3 {[%clk 0:02:56.6]}
15... Rfd8 {[%clk 0:02:36.5]} 16. b4 {[%clk 0:02:56.5]} 16... e5 {[%clk
0:02:26.5]} 17. dxe5 {[%clk 0:02:50.9]} 17... Nxe5 {[%clk 0:02:28.1]} 18. Qe2
{[%clk 0:02:51.2]} 18... d4 {[%clk 0:02:01.6]} 19. exd4 {[%clk 0:02:24.3]} 19...
Qxd4 {[%clk 0:01:58.3]} 20. Rfd1 {[%clk 0:02:18.8]} 20... Nxf3+ {[%clk
0:01:57.6]} 21. Qxf3 {[%clk 0:02:17.4]} 21... Qe5 {[%clk 0:01:33.5]} 22. Re1
{[%clk 0:02:13.3]} 22... Qd4 {[%clk 0:01:25.2]} 23. Red1 {[%clk 0:02:13.1]}
23... Qe5 {[%clk 0:01:24.6]} 24. Re1 {[%clk 0:02:12.3]} 24... Qd4 {[%clk
0:01:24.9]} 25. Rcd1 {[%clk 0:02:13.5]} 25... Qb6 {[%clk 0:01:14.7]} 26. Nd5
{[%clk 0:02:08.8]} 26... Nxd5 {[%clk 0:01:09.5]} 27. Rxd5 {[%clk 0:02:10.7]}
27... Rxd5 {[%clk 0:00:57.6]} 28. Qxd5 {[%clk 0:02:12.6]} 28... g6 {[%clk
0:00:54.7]} 29. Re7 {[%clk 0:02:07.9]} 29... Qf6 {[%clk 0:00:49.8]} 30. Re1
{[%clk 0:02:01.1]} 30... Rc2 {[%clk 0:00:45.7]} 31. Rf1 {[%clk 0:01:40.6]} 31...
Kg7 {[%clk 0:00:43.1]} 32. Qd3 {[%clk 0:01:37]} 32... Rc3 {[%clk 0:00:41]} 33.
Qe4 {[%clk 0:01:21.4]} 33... Rxa3 {[%clk 0:00:41.5]} 34. Rc1 {[%clk 0:01:19.4]}
34... Ra1 {[%clk 0:00:36.7]} 35. Rxa1 {[%clk 0:01:07.1]} 35... Qxa1+ {[%clk
0:00:38.2]} 36. Kh2 {[%clk 0:01:08.5]} 36... Qf6 {[%clk 0:00:39.8]} 37. f3
{[%clk 0:01:06]} 37... g5 {[%clk 0:00:39.6]} 38. Kg1 {[%clk 0:01:05]} 38... h6
{[%clk 0:00:36.2]} 39. Qd3 {[%clk 0:00:54.6]} 39... Qa1+ {[%clk 0:00:33]} 40.
Kh2 {[%clk 0:00:53]} 40... Qe5+ {[%clk 0:00:34.5]} 41. Kg1 {[%clk 0:00:52.8]}
41... Qe1+ {[%clk 0:00:35.3]} 42. Kh2 {[%clk 0:00:53.9]} 42... Qxb4 {[%clk
0:00:36.4]} 43. Qc2 {[%clk 0:00:36.7]} 43... Qd6+ {[%clk 0:00:33.3]} 44. Kg1
{[%clk 0:00:36.5]} 44... Qd4+ {[%clk 0:00:31.2]} 45. Kh2 {[%clk 0:00:36.3]}
45... b4 {[%clk 0:00:32.4]} 46. Qa4 {[%clk 0:00:34.9]} 46... a5 {[%clk
0:00:23.1]} 47. Qxa5 {[%clk 0:00:32.9]} 47... b3 {[%clk 0:00:24.1]} 48. h4
{[%clk 0:00:28.9]} 48... Qxh4+ {[%clk 0:00:19.8]} 49. Kg1 {[%clk 0:00:29.6]}
49... Qd4+ {[%clk 0:00:21.4]} 50. Kh2 {[%clk 0:00:30.3]} 50... b2 {[%clk
0:00:23]} 51. Qb5 {[%clk 0:00:30.1]} 51... Qf4+ {[%clk 0:00:20.6]} 52. Kg1
{[%clk 0:00:30.1]} 52... Qc1+ {[%clk 0:00:21.1]} 53. Kh2 {[%clk 0:00:29.1]}
53... b1=Q {[%clk 0:00:21.7]} 54. Qe5+ {[%clk 0:00:29.8]} 54... Kg6 {[%clk
0:00:21.3]} 55. Qd6+ {[%clk 0:00:29.6]} 55... f6 {[%clk 0:00:20.9]} 56. Qd5
{[%clk 0:00:22.9]} 56... Qf4+ {[%clk 0:00:21.7]} 57. g3 {[%clk 0:00:21.9]} 57...
Qb2+ {[%clk 0:00:19.8]} 58. Kh3 {[%clk 0:00:20.2]} 58... Qf5+ {[%clk 0:00:20.9]}
59. Qxf5+ {[%clk 0:00:19.2]} 59... Kxf5 {[%clk 0:00:21.7]} 60. f4 {[%clk
0:00:21.1]} 60... gxf4 {[%clk 0:00:21.4]} 61. g4+ {[%clk 0:00:23]} 61... Kg6
{[%clk 0:00:22.3]} 62. g5 {[%clk 0:00:24.1]} 62... Qc3+ {[%clk 0:00:18.2]} 63.
Kg4 {[%clk 0:00:22.1]} 63... Qg3# {[%clk 0:00:18]} 0-1

[Event "*** Titled Tuesday Blitz"]
[Site "Chess.com"]
[Date "2020.02.04"]
[Round "6"]
[White "saraswathii"]
[Black "manmanlai1"]
[Result "0-1"]
[WhiteElo "2150"]
[BlackElo "2275"]
[TimeControl "180+2"]
[EndTime "10:26:40 PST"]
[Termination "manmanlai1 won by resignation"]

1. e4 {[%clk 0:03:01.9]} 1... c6 {[%clk 0:03:00.2]} 2. d3 {[%clk 0:03:02.7]}
2... d5 {[%clk 0:03:01.1]} 3. Nd2 {[%clk 0:03:03.5]} 3... e5 {[%clk 0:03:01.7]}
4. Ngf3 {[%clk 0:03:03]} 4... Bd6 {[%clk 0:02:59.7]} 5. g3 {[%clk 0:03:03.2]}
5... Qe7 {[%clk 0:02:58.1]} 6. Bg2 {[%clk 0:03:03.3]} 6... Nf6 {[%clk
0:02:59.1]} 7. O-O {[%clk 0:03:02.4]} 7... dxe4 {[%clk 0:02:59.9]} 8. dxe4
{[%clk 0:03:00.7]} 8... O-O {[%clk 0:03:00.9]} 9. Qe2 {[%clk 0:03:00.8]} 9...
Re8 {[%clk 0:02:49.1]} 10. Nc4 {[%clk 0:02:59.5]} 10... Bc7 {[%clk 0:02:42]} 11.
Bg5 {[%clk 0:02:57.9]} 11... h6 {[%clk 0:02:41.4]} 12. Bd2 {[%clk 0:02:54.3]}
12... Nbd7 {[%clk 0:02:41.3]} 13. Rad1 {[%clk 0:02:49]} 13... Nf8 {[%clk
0:02:41.2]} 14. Nh4 {[%clk 0:02:47.5]} 14... Bg4 {[%clk 0:02:16.2]} 15. f3
{[%clk 0:02:46.9]} 15... Be6 {[%clk 0:02:15.4]} 16. Ne3 {[%clk 0:02:45.7]} 16...
Bb6 {[%clk 0:02:13.5]} 17. Kh1 {[%clk 0:02:44.7]} 17... Qc7 {[%clk 0:02:11.5]}
18. a3 {[%clk 0:02:40.9]} 18... Rad8 {[%clk 0:02:10.7]} 19. Bc3 {[%clk
0:02:38.1]} 19... Rd7 {[%clk 0:02:01.4]} 20. f4 {[%clk 0:02:28.4]} 20... Rxd1
{[%clk 0:01:51.7]} 21. Rxd1 {[%clk 0:02:21.1]} 21... exf4 {[%clk 0:01:50.3]} 22.
Nef5 {[%clk 0:02:07.2]} 22... N8h7 {[%clk 0:00:54.8]} 23. e5 {[%clk 0:01:48.5]}
23... Nd5 {[%clk 0:00:51.2]} 24. gxf4 {[%clk 0:01:26.5]} 24... g6 {[%clk
0:00:20.3]} 25. Nxh6+ {[%clk 0:01:10.6]} 25... Kg7 {[%clk 0:00:18]} 26. f5
{[%clk 0:00:46.9]} 26... Nxc3 {[%clk 0:00:16.2]} 27. bxc3 {[%clk 0:00:39.8]}
27... Kxh6 {[%clk 0:00:12.9]} 28. fxe6 {[%clk 0:00:31.9]} 28... Rxe6 {[%clk
0:00:12.8]} 29. Nf3 {[%clk 0:00:30.7]} 29... Kg7 {[%clk 0:00:12.8]} 30. Bh3
{[%clk 0:00:30.3]} 30... Re7 {[%clk 0:00:12]} 31. e6 {[%clk 0:00:31.3]} 31...
Qf4 {[%clk 0:00:09.3]} 32. Qe5+ {[%clk 0:00:24.3]} 32... Qxe5 {[%clk 0:00:09.3]}
33. Nxe5 {[%clk 0:00:26.2]} 33... fxe6 {[%clk 0:00:10.4]} 34. Rd2 {[%clk
0:00:25.6]} 34... Nf8 {[%clk 0:00:10.9]} 35. Rg2 {[%clk 0:00:24.8]} 35... Kf6
{[%clk 0:00:08.1]} 36. Ng4+ {[%clk 0:00:22.8]} 36... Kg7 {[%clk 0:00:08.6]} 37.
Rg3 {[%clk 0:00:21.7]} 37... Rd7 {[%clk 0:00:07.5]} 38. Ne5 {[%clk 0:00:17.7]}
38... Rd1+ {[%clk 0:00:08.1]} 39. Kg2 {[%clk 0:00:18.8]} 39... Rg1+ {[%clk
0:00:09]} 40. Kf3 {[%clk 0:00:19.1]} 40... Rxg3+ {[%clk 0:00:10.1]} 41. hxg3
{[%clk 0:00:21]} 41... Kf6 {[%clk 0:00:10.9]} 42. Ng4+ {[%clk 0:00:20.6]} 42...
Ke7 {[%clk 0:00:11.5]} 43. Nh6 {[%clk 0:00:22]} 43... Bc5 {[%clk 0:00:11.1]} 44.
a4 {[%clk 0:00:21.8]} 44... Bd6 {[%clk 0:00:10.6]} 45. g4 {[%clk 0:00:21.8]}
45... Be5 {[%clk 0:00:10.8]} 46. c4 {[%clk 0:00:22.3]} 46... Kf6 {[%clk
0:00:11.7]} 47. Ke4 {[%clk 0:00:20.4]} 47... Bc3 {[%clk 0:00:11.5]} 48. Ng8+
{[%clk 0:00:20.8]} 48... Kf7 {[%clk 0:00:12.3]} 49. Nh6+ {[%clk 0:00:21.5]}
49... Kg7 {[%clk 0:00:13.6]} 50. g5 {[%clk 0:00:22.6]} 50... Bd2 {[%clk
0:00:14.9]} 51. Ng4 {[%clk 0:00:20]} 51... Bxg5 {[%clk 0:00:15.4]} 52. Ne5
{[%clk 0:00:21.9]} 52... Kf6 {[%clk 0:00:15]} 53. Nd3 {[%clk 0:00:21.7]} 53...
Ke7 {[%clk 0:00:10.7]} 54. Nc5 {[%clk 0:00:21.8]} 54... b6 {[%clk 0:00:11.7]}
55. Nb3 {[%clk 0:00:21.7]} 55... Bh4 {[%clk 0:00:11.4]} 56. c5 {[%clk
0:00:22.2]} 56... Bf6 {[%clk 0:00:08.1]} 57. cxb6 {[%clk 0:00:22]} 57... axb6
{[%clk 0:00:10]} 58. a5 {[%clk 0:00:23.6]} 58... bxa5 {[%clk 0:00:10.8]} 59.
Nxa5 {[%clk 0:00:25.5]} 59... Kd6 {[%clk 0:00:11.6]} 60. Bg2 {[%clk 0:00:24.2]}
60... Nd7 {[%clk 0:00:11.2]} 61. Nc4+ {[%clk 0:00:23.8]} 61... Ke7 {[%clk
0:00:10.7]} 62. Kd3 {[%clk 0:00:22.9]} 62... Nb8 {[%clk 0:00:07.3]} 63. Be4
{[%clk 0:00:21.2]} 63... g5 {[%clk 0:00:07.8]} 64. Ne3 {[%clk 0:00:22.1]} 64...
Be5 {[%clk 0:00:08]} 65. Kc4 {[%clk 0:00:23.1]} 65... Kd6 {[%clk 0:00:07.9]} 66.
Ng4 {[%clk 0:00:24]} 66... Bf4 {[%clk 0:00:08.8]} 67. Nf6 {[%clk 0:00:23]} 67...
Nd7 {[%clk 0:00:08.1]} 68. Ne8+ {[%clk 0:00:20.2]} 68... Ke7 {[%clk 0:00:07.5]}
69. Ng7 {[%clk 0:00:21.2]} 69... Ne5+ {[%clk 0:00:07.7]} 70. Kd4 {[%clk
0:00:20.1]} 70... Kf7 {[%clk 0:00:07.3]} 71. Nh5 {[%clk 0:00:20.5]} 71... Bh2
{[%clk 0:00:08.4]} 72. Bg2 {[%clk 0:00:19.4]} 72... Ng4 {[%clk 0:00:08.2]} 73.
Bxc6 {[%clk 0:00:17.8]} 73... Bg1+ {[%clk 0:00:05]} 74. Kd3 {[%clk 0:00:14.5]}
74... Bh2 {[%clk 0:00:06.1]} 75. Ke4 {[%clk 0:00:14.9]} 75... Ke7 {[%clk
0:00:05.6]} 76. Ng7 {[%clk 0:00:14.8]} 76... Nf2+ {[%clk 0:00:06.3]} 77. Kf3
{[%clk 0:00:15.5]} 77... Nd1 {[%clk 0:00:07.2]} 78. Nh5 {[%clk 0:00:13.4]} 78...
Kf7 {[%clk 0:00:06.2]} 79. Bb5 {[%clk 0:00:10.4]} 79... Be5 {[%clk 0:00:04.3]}
80. Bc4 {[%clk 0:00:11.2]} 80... Bf6 {[%clk 0:00:04.9]} 81. Ke2 {[%clk
0:00:09.7]} 81... Nc3+ {[%clk 0:00:05.5]} 82. Kd3 {[%clk 0:00:10.6]} 82... Na4
{[%clk 0:00:06.7]} 83. Ng3 {[%clk 0:00:11.8]} 83... Nc5+ {[%clk 0:00:07.1]} 84.
Ke2 {[%clk 0:00:12.4]} 84... Kg6 {[%clk 0:00:07]} 85. Nf1 {[%clk 0:00:13.4]}
85... g4 {[%clk 0:00:07.6]} 86. Nd2 {[%clk 0:00:15.3]} 86... Kg5 {[%clk
0:00:08.9]} 87. Kf2 {[%clk 0:00:15.7]} 87... Kf4 {[%clk 0:00:09.5]} 88. Kg2
{[%clk 0:00:15.1]} 88... Bd4 {[%clk 0:00:09.3]} 89. Nf1 {[%clk 0:00:15.4]} 89...
e5 {[%clk 0:00:09.5]} 90. Ng3 {[%clk 0:00:15]} 90... Be3 {[%clk 0:00:06.1]} 91.
Ne2+ {[%clk 0:00:14.8]} 91... Kg5 {[%clk 0:00:07.1]} 92. Kg3 {[%clk 0:00:16.1]}
92... Ne4+ {[%clk 0:00:07.9]} 93. Kg2 {[%clk 0:00:17.5]} 93... Nd2 {[%clk
0:00:08]} 94. Be6 {[%clk 0:00:18.5]} 94... Ne4 {[%clk 0:00:04.6]} 95. c4 {[%clk
0:00:18.4]} 95... Nf6 {[%clk 0:00:04.6]} 96. Ng3 {[%clk 0:00:18.7]} 96... Bd4
{[%clk 0:00:03.4]} 97. Nf5 {[%clk 0:00:19.4]} 97... Bc5 {[%clk 0:00:04]} 98. Ng7
{[%clk 0:00:19.7]} 98... Nh5 {[%clk 0:00:04]} 99. Ne8 {[%clk 0:00:19.8]} 99...
Nf4+ {[%clk 0:00:04.7]} 100. Kg3 {[%clk 0:00:20.8]} 100... Nxe6 {[%clk 0:00:06]}
101. Kg2 {[%clk 0:00:21.5]} 101... Kg6 {[%clk 0:00:06.7]} 102. Kg3 {[%clk
0:00:22.9]} 102... Kf7 {[%clk 0:00:06.5]} 0-1